bitfinex-derivatives/quotes_ETHF0:USTF0_20250712
["timestamp","ask_amount","ask_price","bid_price","bid_amount"]
[1752354456407,3.2078,2927.6,2927.5,0.68293]
[1752354456613,3.2078,2927.6,2927.5,4.30337294]
[1752354456812,0.6829,2927.7,2927.6,1.33111]
[1752354457007,1.3184,2927.7,2927.6,3.20401]
[1752354458313,3.1493,2927.7,2927.6,3.20401]
[1752354458514,2.2334,2927.7,2927.6,3.20401]
[1752354458703,1.3184,2927.7,2927.6,3.20401]
[1752354458908,0.6355,2927.7,2927.6,3.20401]
[1752354459516,1.31839,2927.7,2927.6,3.20401]
[1752354459810,0.6355,2927.7,2927.6,3.20401]
[1752354460217,1.31839,2927.7,2927.6,3.20401]
[1752354460418,0.6355,2927.7,2927.6,3.20401]
[1752354460919,6.77354294,2928.1,2928.0,0.6482]
[1752354461114,8.48836855,2928.1,2928.0,2.5211]
[1752354461914,5.28056855,2928.1,2928.0,2.5211]
[1752354463019,8.48836855,2928.1,2928.0,2.5211]
[1752354463619,8.48836855,2928.1,2928.0,1.8729]
[1752354463819,3.14924,2927.9,2927.8,3.20395]
[1752354465121,3.14924,2927.9,2927.8,3.28925]
[1752354465316,1.31834,2927.9,2927.8,3.28925]
[1752354465917,3.2078,2928.1,2927.8,2.6064]
[1752354466120,3.8433,2928.1,2928.0,3.20392]
[1752354466313,4.52609,2928.1,2928.0,3.20392]
[1752354466513,5.44109,2928.1,2928.0,3.20392]
[1752354467921,5.44109,2928.1,2928.0,2.5211]
[1752354467922,6.35699,2928.1,2928.0,2.5211]
[1752354468522,3.14919,2928.1,2928.0,2.5211]
[1752354469519,1.31834,2927.9,2927.8,2.6064]
[1752354469721,3.14924,2927.9,2927.8,2.6064]
[1752354472823,3.14924,2927.9,2927.2,3.2078]
[1752354473027,1.31848,2927.4,2927.3,1.33118]
[1752354473418,1.31848,2927.4,2927.3,3.20408]
[1752354475828,1.31848,2927.4,2927.3,2.5211]
[1752354476228,7.45652294,2927.4,2927.3,1.8729]
[1752354478728,3.1494,2927.2,2927.1,2.6065]
[1752354479027,4.24874294,2927.2,2927.1,2.6065]
[1752354479224,4.24874294,2927.2,2927.1,2.5211]
[1752354479933,4.24874294,2927.2,2927.1,1.8729]
[1752354481627,1.31855,2927.0,2926.9,2.6065]
[1752354481822,4.24879294,2927.0,2926.9,2.6065]
[1752354482022,4.24879294,2927.0,2926.9,2.5211]
[1752354482227,4.24879294,2927.0,2926.9,0.9039]
[1752354482533,4.24879294,2927.0,2926.9,1.8729]
[1752354484833,4.24879294,2927.0,2926.9,2.5211]
[1752354485437,4.24879294,2927.0,2926.9,1.8729]
[1752354486329,4.24879294,2927.0,2926.9,2.5211]
[1752354487434,2.23355,2927.0,2926.9,2.5211]
[1752354487638,3.15885,2927.0,2926.9,2.5211]
[1752354490434,0.68299,2927.3,2927.0,0.6075]
[1752354490626,3.89077,2927.4,2927.3,3.15888]
[1752354490832,3.89076,2927.4,2927.3,3.15888]
[1752354491433,0.68296,2927.4,2927.3,3.15888]
[1752354496939,0.68294,2927.6,2927.5,3.15881]
[1752354497245,1.713237,2927.6,2927.5,3.15881]
[1752354498045,2.317237,2927.6,2927.5,2.4759]
[1752354498244,3.296637,2927.6,2927.5,2.4759]
[1752354499440,2.26634,2927.6,2927.5,2.4759]
[1752354499644,3.19164,2927.6,2927.5,2.4759]
[1752354501643,2.26634,2927.6,2927.5,2.4759]
[1752354502843,2.26634,2927.6,2927.5,3.15883]
[1752354503037,2.26634,2927.6,2927.5,2.4759]
[1752354503244,1.28694,2927.6,2927.5,2.4759]
[1752354504344,2.26634,2927.6,2927.5,2.4759]
[1752354504649,3.19164,2927.6,2927.5,2.4759]
[1752354506348,2.26634,2927.6,2927.5,2.4759]
[1752354506646,1.28694,2927.6,2927.5,2.4759]
[1752354507048,1.28694,2927.6,2927.5,3.15883]
[1752354507448,0.68294,2927.6,2927.5,3.15883]
[1752354508146,0.68291,2927.7,2927.6,1.29038]
[1752354508344,0.68291,2927.7,2927.6,3.15878]
[1752354508539,0.9794,2928.2,2927.9,1.8684]
[1752354508745,2.26617,2928.2,2928.1,2.4759]
[1752354508944,4.22284943,2928.2,2928.1,2.4759]
[1752354510547,2.31814943,2928.2,2928.1,2.4759]
[1752354513750,3.24344943,2928.2,2928.1,2.4759]
[1752354513950,2.31814943,2928.2,2928.1,2.4759]
[1752354515452,5.32219237,2928.2,2928.1,0.9548]
[1752354515649,5.32219237,2928.2,2928.1,1.8684]
[1752354515849,0.68291,2927.7,2927.6,0.6075]
[1752354516048,0.68291,2927.7,2927.6,1.5211]
[1752354516447,0.68291,2927.7,2927.6,2.5145]
[1752354516646,3.8274,2928.2,2928.1,2.575]
[1752354516848,5.54049765,2928.2,2928.1,2.575]
[1752354517050,5.54049765,2928.2,2928.1,3.25779]
[1752354517752,5.54049765,2928.2,2928.1,2.575]
[1752354522158,4.51017,2928.2,2928.1,2.575]
[1752354522358,4.51017,2928.2,2928.1,3.25779]
[1752354522560,4.51017,2928.2,2928.1,2.575]
[1752354524557,3.2078,2928.2,2928.1,3.25779]
[1752354524760,3.2078,2928.2,2928.0,0.0853]
[1752354524761,4.51008,2928.6,2928.5,2.575]
[1752354524954,5.54098868,2928.6,2928.5,2.575]
[1752354525156,7.46858868,2928.6,2928.5,2.575]
[1752354526260,4.51008,2928.6,2928.5,2.575]
[1752354527363,5.49028,2928.6,2928.5,2.575]
[1752354527662,6.43768,2928.6,2928.5,2.575]
[1752354532056,6.43768,2928.6,2928.5,1.9101]
[1752354533760,6.43768,2928.6,2928.5,2.575]
[1752354534757,5.49028,2928.6,2928.5,2.575]
[1752354534957,6.43768,2928.6,2928.5,2.575]
[1752354538356,7.47058294,2928.6,2928.5,2.575]
[1752354542268,5.54298294,2928.6,2928.5,2.575]
[1752354542463,6.52318294,2928.6,2928.5,2.575]
[1752354542764,7.47058294,2928.6,2928.5,2.6603]
[1752354544668,7.47058294,2928.6,2928.3,0.9934]
[1752354544669,2.5472,2928.4,2928.3,0.9934]
[1752354544871,4.32926294,2928.4,2928.3,2.575]
[1752354545565,5.36118908,2928.4,2928.3,2.575]
[1752354546572,1.71464614,2928.4,2928.3,3.25775]
[1752354546970,1.71464614,2928.4,2928.3,2.575]
[1752354547170,1.71464614,2928.4,2928.3,3.25775]
[1752354547576,1.71464614,2928.4,2928.3,2.575]
[1752354547972,2.34624614,2928.4,2928.3,2.575]
[1752354552576,1.71464614,2928.4,2928.3,3.25775]
[1752354556775,3.21031597,2928.6,2928.3,3.61697]
[1752354557075,3.89302597,2928.6,2928.5,4.34464294]
[1752354557273,1.03616562,2928.6,2928.5,4.34464294]
[1752354557478,0.00251597,2928.6,2928.5,4.34464294]
[1752354557875,0.00251597,2928.6,2928.5,3.2453]
[1752354561685,0.68519597,2928.6,2928.5,3.2453]
[1752354563386,3.14059597,2928.6,2928.5,2.5626]
[1752354564384,3.14059597,2928.6,2928.5,1.9067]
[1752354564586,2.22029,2928.2,2928.1,2.5626]
[1752354564784,1.31437,2928.2,2928.1,3.24539]
[1752354565787,0.6316,2928.2,2928.1,3.24539]
[1752354566188,1.31437,2928.2,2928.1,3.24539]
[1752354567387,0.6316,2928.2,2928.1,3.24539]
[1752354568488,2.22024,2928.4,2928.3,2.30555]
[1752354568689,2.22024,2928.4,2928.3,3.24535]
[1752354569783,2.4554,2928.4,2928.3,3.24535]
[1752354569986,0.6316,2928.4,2928.3,3.24535]
[1752354571390,0.6316,2928.4,2928.3,2.5626]
[1752354571988,0.6316,2928.4,2928.3,3.24535]
[1752354572588,1.31432,2928.4,2928.3,2.5626]
[1752354572789,0.6316,2928.4,2928.3,3.24535]
[1752354573189,1.31432,2928.4,2928.3,2.5626]
[1752354574793,3.13812,2928.4,2928.3,2.5626]
[1752354576489,4.23746294,2928.4,2928.3,1.9067]
[1752354576698,3.21867,2928.2,2928.1,2.5382]
[1752354576891,4.31801294,2928.2,2928.1,2.5382]
[1752354577088,3.21876,2927.8,2927.7,4.795]
[1752354577289,3.21886,2927.4,2927.3,0.9778]
[1752354577598,4.31820294,2927.4,2927.3,0.9778]
[1752354577792,1.33023,2927.1,2927.0,5.746]
[1752354577990,3.21893,2927.1,2927.0,2.5382]
[1752354578597,2.25433,2927.1,2927.0,2.5382]
[1752354580688,3.21893,2927.1,2927.0,2.5382]
[1752354583293,3.21893,2927.1,2926.8,1.5872]
[1752354583294,3.21897,2926.9,2926.8,1.5872]
[1752354583492,3.21897,2926.9,2926.6,3.2078]
[1752354583493,3.21902,2926.7,2926.6,1.5872]
[1752354583695,7.52616294,2926.7,2926.6,2.5382]
[1752354586400,6.42682,2926.7,2926.6,2.5382]
[1752354588499,3.21902,2926.7,2926.6,2.5382]
[1752354592602,4.31836294,2926.7,2926.6,2.5382]
[1752354599004,3.21902,2926.7,2926.6,2.5382]
[1752354602207,3.21902,2926.7,2926.6,3.22134]
[1752354602403,0.68312,2926.7,2926.6,3.22134]
[1752354602903,1.33032,2926.7,2926.6,3.22134]
[1752354603298,6.8041,2927.1,2926.7,1.29252]
[1752354603500,4.53803,2927.1,2927.0,2.5382]
[1752354604005,4.53803,2927.1,2927.0,3.22125]
[1752354605508,4.53803,2927.1,2927.0,2.5382]
[1752354606307,4.53803,2927.1,2927.0,3.22125]
[1752354607209,4.53803,2927.1,2927.0,2.5382]
[1752354609110,5.58871696,2927.1,2927.0,2.5382]
[1752354611711,7.50451696,2927.1,2927.0,2.5382]
[1752354612212,8.6038599,2927.1,2927.0,2.5382]
[1752354612911,7.6041599,2927.1,2927.0,2.5382]
[1752354614913,4.3963599,2927.1,2927.0,2.5382]
[1752354615313,7.6041599,2927.1,2927.0,2.5382]
[1752354616815,4.3963599,2927.1,2927.0,2.5382]
[1752354617010,7.6041599,2927.1,2927.0,2.5382]
[1752354617214,8.6038599,2927.1,2927.0,2.5382]
[1752354618013,8.6038599,2927.1,2927.0,3.22125]
[1752354618014,5.58871696,2927.1,2927.0,3.22125]
[1752354618208,5.58871696,2927.1,2927.0,2.5382]
[1752354618916,6.50481696,2927.1,2927.0,2.5382]
[1752354619516,3.29701696,2927.1,2927.0,2.5382]
[1752354622920,1.34637,2926.6,2926.5,1.5253]
[1752354623516,1.34637,2926.6,2926.5,2.4658]
[1752354626826,1.34637,2926.6,2926.5,3.14897]
[1752354627425,1.34637,2926.6,2926.5,2.4658]
[1752354630124,1.34637,2926.6,2926.5,3.14897]
[1752354630920,1.34637,2926.6,2926.5,2.4658]
[1752354631824,1.34637,2926.6,2926.5,3.14897]
[1752354644133,4.51055,2927.0,2926.9,1.5832]
[1752354644433,5.56504157,2927.0,2926.9,2.4957]
[1752354646840,5.56504157,2927.0,2926.9,3.17877]
[1752354647032,5.56504157,2927.0,2926.9,2.4957]
[1752354648039,6.55944157,2927.0,2926.9,2.4957]
[1752354648442,3.35164157,2927.0,2926.9,2.4957]
[1752354649142,3.3516216,2927.0,2926.9,2.4957]
[1752354650533,4.2996216,2927.0,2926.9,2.4957]
[1752354657949,3.3516216,2927.0,2926.9,2.4957]
[1752354658549,1.30287,2926.6,2926.5,2.4957]
[1752354658749,3.39661294,2926.6,2926.5,2.4957]
[1752354658949,2.40221294,2926.6,2926.5,3.17886]
[1752354659151,1.30287,2926.6,2926.5,3.17886]
[1752354661953,1.30287,2926.6,2926.5,2.4957]
[1752354662175,6.60441294,2926.6,2926.5,2.4957]
[1752354662343,1.30298,2926.0,2925.9,3.8402]
[1752354662544,1.71904294,2926.0,2925.9,4.52351]
[1752354662847,0.68326,2926.1,2926.0,0.68327]
[1752354663048,1.30296,2926.1,2926.0,1.5449]
[1752354663243,1.30296,2926.1,2926.0,2.4957]
[1752354664449,3.24536,2926.1,2926.0,2.4957]
[1752354664647,1.30296,2926.1,2926.0,3.17898]
[1752354664947,0.6197,2926.1,2926.0,3.17898]
[1752354665154,1.30296,2926.1,2926.0,2.4957]
[1752354665653,1.30296,2926.1,2926.0,3.17898]
[1752354666047,1.30296,2926.1,2926.0,2.4957]
[1752354666255,0.68337,2925.7,2925.6,0.68336]
[1752354666453,0.68337,2925.7,2925.6,3.23056]
[1752354666653,0.68337,2925.7,2925.6,8.23056]
[1752354667852,0.68335,2925.8,2925.7,1.33453]
[1752354668053,1.31252,2925.9,2925.8,1.33451]
[1752354668252,1.31252,2925.9,2925.8,3.23051]
[1752354669455,1.31252,2925.9,2925.8,2.5472]
[1752354669956,1.31252,2925.9,2925.8,3.23053]
[1752354671459,1.31252,2925.9,2925.8,2.5472]
[1752354674260,1.31252,2925.9,2925.8,3.23053]
[1752354674860,0.6292,2926.2,2926.1,0.68326]
[1752354675062,1.31242,2926.3,2926.2,1.33444]
[1752354675260,1.31242,2926.3,2926.2,2.30104]
[1752354675459,0.6292,2926.3,2926.2,3.23044]
[1752354675657,2.24081,2926.3,2926.2,3.23044]
[1752354676054,3.21841,2926.3,2926.2,3.23044]
[1752354676970,3.21841,2926.3,2926.2,2.5472]
[1752354677562,3.21841,2926.3,2926.2,3.23044]
[1752354679360,3.21841,2926.3,2926.2,2.5472]
[1752354679561,1.31251,2926.0,2925.9,2.5472]
[1752354679771,3.21851,2926.0,2925.9,2.5472]
[1752354680065,2.24091,2926.0,2925.9,2.5472]
[1752354680365,2.24091,2926.0,2925.9,3.23049]
[1752354680567,1.31258,2925.7,2925.6,3.23058]
[1752354680762,1.31258,2925.7,2925.6,2.5472]
[1752354681466,1.31258,2925.7,2925.6,3.23058]
[1752354682166,0.6292,2925.7,2925.6,3.23058]
[1752354683866,1.31255,2925.7,2925.6,3.23058]
[1752354684069,0.6292,2925.7,2925.6,3.23058]
[1752354684465,1.31255,2925.7,2925.6,3.23058]
[1752354686158,0.6292,2925.7,2925.6,3.23058]
[1752354688170,1.31255,2925.7,2925.6,3.23058]
[1752354689473,0.6292,2925.7,2925.6,3.23058]
[1752354690074,1.31255,2925.7,2925.6,3.23058]
[1752354691974,2.24095,2925.7,2925.6,3.23058]
[1752354693175,1.31255,2925.7,2925.6,3.23058]
[1752354694074,2.24095,2925.7,2925.6,3.23058]
[1752354695375,3.21855,2925.7,2925.6,2.5472]
[1752354696879,2.24095,2925.7,2925.6,3.23058]
[1752354699873,0.6292,2925.7,2925.6,3.23058]
[1752354700774,0.9793,2926.2,2925.9,1.8991]
[1752354700979,0.6681,2926.2,2926.1,2.5672]
[1752354701277,3.64357688,2926.2,2926.1,2.5672]
[1752354701674,4.32683688,2926.2,2926.1,2.5672]
[1752354703281,4.32683688,2926.2,2926.1,3.25046]
[1752354703480,4.32683688,2926.2,2926.1,2.5672]
[1752354704182,3.64357688,2926.2,2926.1,3.25046]
[1752354704484,4.32681688,2926.2,2926.1,3.25046]
[1752354705082,3.64357688,2926.2,2926.1,3.25046]
[1752354705683,4.32681688,2926.2,2926.1,3.25046]
[1752354706382,3.27294,2926.2,2926.1,3.25046]
[1752354707984,0.6681,2926.4,2926.3,2.5672]
[1752354708387,1.72203462,2926.4,2926.3,2.5672]
[1752354708885,2.40522462,2926.4,2926.3,3.25041]
[1752354710483,1.05393462,2926.4,2926.3,4.34975294]
[1752354710683,0.68312,2926.7,2926.6,3.25034]
[1752354710885,1.73713447,2926.7,2926.6,3.25034]
[1752354711389,0.68312,2926.8,2926.7,1.35122]
[1752354711591,0.68312,2926.8,2926.7,3.25032]
[1752354712289,1.35113,2927.1,2927.0,2.5672]
[1752354712590,2.40432724,2927.1,2927.0,2.5672]
[1752354713289,1.35113,2927.1,2927.0,2.5672]
[1752354719902,3.27273,2927.1,2927.0,2.5672]
[1752354720800,1.09934294,2927.2,2926.5,0.6681]
[1752354720801,1.35124,2926.6,2926.5,0.6681]
[1752354721298,1.35124,2926.6,2926.5,2.5672]
[1752354721799,3.27284,2926.6,2926.5,2.5672]
[1752354722198,1.35124,2926.6,2926.5,2.5672]
[1752354723604,1.35124,2926.6,2926.5,3.25037]
[1752354723797,0.68314,2926.7,2926.6,1.35122]
[1752354724000,1.35124,2926.7,2926.6,3.25032]
[1752354724205,1.35124,2926.7,2926.6,2.5672]
[1752354724905,1.35124,2926.7,2926.6,3.25034]
[1752354725106,1.35124,2926.7,2926.6,2.5672]
[1752354729810,3.20034,2926.7,2926.6,2.5672]
[1752354730005,1.35124,2926.7,2926.6,2.5672]
[1752354732414,1.35124,2926.7,2926.6,3.25034]
[1752354733015,1.35124,2926.7,2926.6,2.5672]
[1752354733512,1.35124,2926.7,2926.6,3.25034]
[1752354734205,2.26917,2926.9,2926.8,2.5374]
[1752354735615,3.18097,2926.9,2926.8,2.5374]
[1752354736214,2.26917,2926.9,2926.8,2.5374]
[1752354736419,1.33187,2926.9,2926.8,3.2205]
[1752354736721,1.33187,2926.9,2926.8,2.5374]
[1752354737111,3.18097,2926.9,2926.8,2.5374]
[1752354739121,4.28031294,2926.9,2926.8,2.5374]
[1752354740116,5.33369232,2926.9,2926.8,2.5374]
[1752354745618,3.48459232,2926.9,2926.8,3.2205]
[1752354745925,3.48459232,2926.9,2926.8,2.5374]
[1752354746216,1.05337938,2926.9,2926.8,3.2205]
[1752354746622,1.0538127,2926.9,2926.8,2.3134]
[1752354746814,0.68304,2927.1,2926.8,2.3134]
[1752354747016,1.0538713,2927.0,2926.9,2.31335]
[1752354747219,1.0538713,2927.0,2926.9,3.22045]
[1752354748726,1.3318,2927.3,2927.2,1.3211]
[1752354748922,2.38585196,2927.3,2927.2,3.2204]
[1752354749327,1.3318,2927.3,2927.2,3.2204]
[1752354750925,0.6488,2927.3,2927.2,3.2204]
[1752354751125,1.33178,2927.3,2927.2,3.2204]
[1752354751321,2.26908,2927.3,2927.2,3.2204]
[1752354753827,0.6488,2927.3,2927.2,3.2204]
[1752354754023,1.33178,2927.3,2927.2,2.5374]
[1752354754227,3.18088,2927.3,2927.2,3.2204]
[1752354754725,3.18088,2927.3,2927.2,2.5374]
[1752354760434,3.18088,2927.3,2927.2,1.8993]
[1752354760634,3.18088,2927.3,2927.2,2.5041]
[1752354761140,3.18088,2927.3,2927.2,3.1871]
[1752354763743,3.18088,2927.3,2927.2,2.5041]
[1752354764338,3.18088,2927.3,2927.2,3.1871]
[1752354764541,3.18088,2927.3,2927.2,2.5041]
[1752354768943,3.18088,2927.3,2927.2,3.1871]
[1752354769138,3.18088,2927.3,2927.2,2.5041]
[1752354769943,3.18088,2927.3,2927.2,3.1871]
[1752354771142,3.18088,2927.3,2927.2,2.5041]
[1752354771742,3.18088,2927.3,2927.2,3.1871]
[1752354772042,3.18088,2927.3,2927.2,2.5041]
[1752354772646,2.26908,2927.3,2927.2,2.5041]
[1752354774047,2.26908,2927.3,2927.2,3.1871]
[1752354774646,2.26908,2927.3,2927.2,2.5041]
[1752354775846,2.26908,2927.3,2927.2,3.1871]
[1752354776141,3.32346425,2927.3,2927.2,3.1871]
[1752354776348,3.32346425,2927.3,2927.2,2.5041]
[1752354776546,3.32346425,2927.3,2927.2,3.1871]
[1752354778647,3.32346425,2927.3,2927.2,2.5041]
[1752354778948,4.30536425,2927.3,2927.2,2.5041]
[1752354780548,4.30536425,2927.3,2927.2,1.8993]
[1752354780942,4.30536425,2927.3,2927.2,2.5041]
[1752354790051,3.32346425,2927.3,2927.2,2.5041]
[1752354790955,2.38616425,2927.3,2927.2,2.5041]
[1752354793057,2.38616425,2927.3,2927.2,3.1871]
[1752354793457,2.38616425,2927.3,2927.2,2.5041]
[1752354794656,2.38616425,2927.3,2927.2,3.1871]
[1752354798358,0.68293,2927.6,2927.5,1.34432]
[1752354798661,1.73650528,2927.6,2927.5,3.25652]
[1752354799160,1.05357528,2927.6,2927.5,3.25652]
[1752354799359,1.30921,2927.7,2927.6,2.28741]
[1752354799559,1.30921,2927.7,2927.6,3.25651]
[1752354799560,2.36269308,2927.7,2927.6,3.25651]
[1752354802665,1.67978308,2927.7,2927.6,3.25651]
[1752354803858,1.05348308,2927.7,2927.6,3.25651]
[1752354804056,0.68286,2927.9,2927.8,2.28736]
[1752354804251,0.68286,2927.9,2927.8,2.5736]
[1752354804457,2.36212421,2927.9,2927.8,3.25646]
[1752354805156,2.36212421,2927.9,2927.8,2.5736]
[1752354806770,2.36212421,2927.9,2927.8,3.25646]
[1752354806771,1.05296421,2927.9,2927.8,3.25646]
[1752354807265,51.78102,2928.4,2928.3,2.5736]
[1752354807467,52.83286719,2928.4,2928.3,2.5736]
[1752354807670,4.26816719,2928.4,2928.3,2.5736]
[1752354808265,3.21632,2928.4,2928.3,2.5736]
[1752354811265,4.31566294,2928.4,2928.3,2.5736]
[1752354811459,3.35656294,2928.4,2928.3,2.5736]
[1752354812060,4.31566294,2928.4,2928.3,2.5736]
[1752354813368,4.31566294,2928.4,2928.3,1.9122]
[1752354815570,0.68284,2927.9,2927.8,3.2078]
[1752354815769,4.31578294,2927.9,2927.8,2.5736]
[1752354819381,1.30961,2927.6,2927.5,5.7634]
[1752354820682,1.9038,2928.2,2927.6,1.8993]
[1752354820975,0.6267,2928.2,2928.1,0.6563]
[1752354821278,1.30947,2928.2,2928.1,2.5556]
[1752354825181,3.8345,2928.2,2928.1,2.5556]
[1752354825385,4.31261294,2928.2,2928.1,1.8993]
[1752354825785,7.52041294,2928.2,2928.1,1.8993]
[1752354827584,7.52041294,2928.2,2928.1,2.5556]
[1752354829287,8.57218721,2928.2,2928.1,2.5556]
[1752354830090,8.57218721,2928.2,2928.1,1.8993]
[1752354831991,0.68292,2927.6,2927.5,1.601]
[1752354832485,2.40896294,2927.6,2927.5,2.5556]
[1752354833193,1.30962,2927.6,2927.5,2.5556]
[1752354833793,1.30962,2927.6,2927.5,3.23853]
[1752354834193,0.6829,2927.7,2927.6,1.3392]
[1752354834395,0.6829,2927.7,2927.6,2.5556]
[1752354835394,0.6829,2927.7,2927.6,3.23851]
[1752354835594,0.68286,2927.8,2927.7,3.23848]
[1752354837091,4.51735,2927.9,2927.8,3.23846]
[1752354837292,5.57030282,2927.9,2927.8,3.23846]
[1752354837594,5.57030282,2927.9,2927.8,2.5556]
[1752354838595,6.54180282,2927.9,2927.8,2.5556]
[1752354838893,7.47410282,2927.9,2927.8,2.5556]
[1752354839294,7.47410282,2927.9,2927.8,3.23846]
[1752354839896,6.54180282,2927.9,2927.8,3.23846]
[1752354840292,2.77899576,2927.9,2927.5,0.9447]
[1752354840490,1.70734,2927.5,2927.1,0.9546]
[1752354840792,1.30977,2926.9,2926.8,2.5556]
[1752354840997,4.93384294,2926.9,2926.8,3.2387]
[1752354841192,4.93384294,2926.9,2926.8,2.5556]
[1752354841393,24.97435,2927.5,2926.8,2.5556]
[1752354841394,0.9715,2927.3,2927.1,0.9546]
[1752354841600,0.6267,2926.9,2926.8,1.8993]
[1752354841800,0.6267,2926.9,2926.8,3.23869]
[1752354842398,1.30977,2926.9,2926.8,2.5556]
[1752354842600,3.21357,2926.9,2926.8,2.5556]
[1752354842796,2.28127,2926.9,2926.8,2.5556]
[1752354843899,2.28127,2926.9,2926.8,3.2387]
[1752354844099,1.5982,2926.9,2926.8,3.2387]
[1752354844399,1.30974,2927.1,2927.0,2.5556]
[1752354844593,2.28124,2927.1,2927.0,2.5556]
[1752354844893,3.21354,2927.1,2927.0,2.5556]
[1752354849498,3.21354,2927.1,2926.5,3.2078]
[1752354849694,0.6185,2926.6,2926.5,1.34474]
[1752354849893,1.71784294,2926.6,2926.5,1.34474]
[1752354850098,1.71784294,2926.6,2926.5,2.27674]
[1752354850294,0.6185,2926.6,2926.5,2.5476]
[1752354850498,1.30164,2926.6,2926.5,2.5476]
[1752354850703,4.26398294,2926.6,2926.5,1.6156]
[1752354851006,4.26398294,2926.6,2926.0,2.5476]
[1752354851007,3.16476,2926.1,2926.0,2.5476]
[1752354851198,4.26410294,2926.1,2926.0,2.5476]
[1752354851508,3.32700294,2926.1,2926.0,2.5476]
[1752354851708,4.26410294,2926.1,2926.0,2.5476]
[1752354854202,1.30176,2926.1,2926.0,2.5476]
[1752354855309,2.40110294,2926.1,2926.0,2.5476]
[1752354855504,4.26410294,2926.1,2926.0,2.5476]
[1752354858009,4.26410294,2926.1,2926.0,1.886]
[1752354858506,4.26410294,2926.1,2926.0,0.932]
[1752354859008,3.16481,2925.9,2925.8,2.5476]
[1752354859211,4.26415294,2925.9,2925.8,2.5476]
[1752354859606,4.26415294,2925.9,2925.8,1.886]
[1752354860002,2.22775,2925.7,2925.6,1.886]
[1752354860207,4.26419294,2925.7,2925.6,2.5476]
[1752354861614,4.26419294,2925.7,2925.6,1.886]
[1752354862007,4.26419294,2925.7,2925.6,2.5476]
[1752354862213,7.47199294,2925.7,2925.6,2.5476]
[1752354864418,4.26419294,2925.7,2925.6,2.5476]
[1752354865919,7.47199294,2925.7,2925.6,2.5476]
[1752354867817,4.26419294,2925.7,2925.6,2.5476]
[1752354868623,7.47199294,2925.7,2925.6,2.5476]
[1752354869216,7.47199294,2925.7,2925.1,2.5476]
[1752354869217,1.70845,2925.6,2925.1,2.5476]
[1752354869422,0.68345,2925.3,2925.2,2.5476]
[1752354869617,1.30195,2925.3,2925.2,2.5476]
[1752354869817,2.22785,2925.3,2925.2,2.5476]
[1752354870720,1.30195,2925.3,2925.2,3.23107]
[1752354871225,1.30195,2925.3,2925.2,2.5476]
[1752354872823,3.16495,2925.3,2925.2,2.5476]
[1752354873218,3.16495,2925.3,2925.2,1.886]
[1752354873522,1.30206,2924.8,2924.7,1.34518]
[1752354873725,1.30206,2924.8,2924.7,0.6616]
[1752354874025,1.30206,2924.8,2924.7,2.5476]
[1752354874625,0.68356,2924.8,2924.7,2.5476]
[1752354875321,0.68356,2924.8,2924.7,3.23119]
[1752354875623,0.68356,2924.8,2924.7,2.5476]
[1752354875820,1.30206,2924.8,2924.7,2.5476]
[1752354876227,0.68356,2924.8,2924.7,3.23119]
[1752354876523,0.68356,2924.8,2924.7,2.5476]
[1752354877325,1.31636,2924.8,2924.7,2.5476]
[1752354877824,1.31636,2924.8,2924.7,3.23119]
[1752354878124,1.31636,2924.8,2924.7,2.5476]
[1752354878321,1.31636,2924.8,2924.7,3.23119]
[1752354878726,1.31636,2924.8,2924.7,2.5476]
[1752354879319,1.31636,2924.8,2924.7,3.23119]
[1752354879719,1.31636,2924.8,2924.7,2.5476]
[1752354880218,1.31636,2924.8,2924.7,3.23119]
[1752354881824,4.34680294,2924.8,2924.7,2.5476]
[1752354883324,0.68366,2924.4,2924.3,3.8448]
[1752354883520,3.39230294,2924.4,2924.3,4.8384]
[1752354883920,4.34690294,2924.4,2924.3,4.8384]
[1752354884321,4.34690294,2924.4,2924.3,1.6306]
[1752354885627,4.34690294,2924.4,2924.3,0.9936]
[1752354886427,4.34690294,2924.4,2924.3,1.6306]
[1752354886629,4.34690294,2924.4,2924.3,0.9936]
[1752354886925,3.2476,2924.2,2924.1,0.9936]
[1752354887126,4.34694294,2924.2,2924.1,0.9936]
[1752354887524,1.31655,2924.0,2923.9,5.771]
[1752354887726,4.34699294,2924.0,2923.9,5.771]
[1752354888230,3.24771,2923.9,2923.8,3.24698]
[1752354888527,3.24771,2923.9,2923.8,2.5632]
[1752354890332,3.24771,2923.9,2923.8,3.247]
[1752354890731,5.50085,2924.1,2924.0,1.5696]
[1752354890934,5.50085,2924.1,2924.0,2.5632]
[1752354891135,6.45545,2924.1,2924.0,2.5632]
[1752354892536,5.50085,2924.1,2924.0,3.24695]
[1752354892736,5.50085,2924.1,2924.0,2.5632]
[1752354893531,5.50085,2924.1,2924.0,3.24695]
[1752354893944,3.2078,2924.1,2924.0,3.24695]
[1752354896040,3.2078,2924.6,2924.5,3.24683]
[1752354897039,3.2078,2925.0,2924.9,1.5696]
[1752354897239,4.26005219,2925.0,2924.9,3.24674]
[1752354900052,3.2078,2925.0,2924.9,3.24674]
[1752354900947,3.2078,2925.4,2925.3,3.24665]
[1752354901155,1.05268942,2925.4,2925.3,4.34599294]
[1752354901344,1.6093,2925.9,2925.8,0.637]
[1752354901654,3.34559725,2925.9,2925.8,2.5632]
[1752354902348,3.34559725,2925.9,2925.8,3.24653]
[1752354902544,3.34559725,2925.9,2925.8,2.5632]
[1752354905757,4.30019725,2925.9,2925.8,2.5632]
[1752354908463,3.34559725,2925.9,2925.8,3.24653]
[1752354908851,3.34559725,2925.9,2925.8,2.5632]